Workbook

Sheet Лист1
A1: Школа | F1: Утвердил: | G1: должность | H1: директор
A2: Типовое примерное меню приготавливаемых блюд | G2: фамилия | H2: Платонова О.К,
A3: Возрастная категория | E3: 7-11 лет | G3: дата | H3: 29 | I3: 12 | J3: 2022
H4: день | I4: месяц | J4: год
A5: Неделя | B5: День недели | C5: Прием пищи | D5: Раздел меню | E5: Блюда | F5: Вес блюда, г | G5: Белки | H5: Жиры | I5: Углеводы | J5: Калорийность | K5: № рецептуры | L5: Цена
A6: 1 | B6: 1 | C6: Завтрак | D6: гор.блюдо | E6: Котлеты из говядины | F6: 90 | G6: 11 | H6: 14 | I6: 11 | J6: 205 | K6: Дели 2015 №268
E7: Каша вязкая (гречневая) | F7: 150 | G7: 7 | H7: 9 | I7: 34 | J7: 170 | K7: 303 сбор рецептур Дели 2015
D8: гор.напиток | E8: Чай с молоком | F8: 150/50/15 | G8: 2 | H8: 1 | I8: 16 | J8: 81 | K8: ДеЛи,2015-544с,№378
D9: салат | E9: салат из моркови с сахаром | F9: 60 | G9: 1 | H9: 2 | I9: 4 | J9: 50 | K9: ДеЛи,2012-584с,№62
D10: хлеб | E10: Хлеб ржано- пшенич.,1с | F10: 20 | G10: 1.0 | H10: 0.2 | I10: 9.0 | J10: 44
E11: Хлеб белый,1с | F11: 30 | G11: 2.0 | H11: 0.2 | I11: 15.0 | J11: 71
D12: фрукты | L12: 63.61
D15: итого | F15: =SUM(F6:F14) -> 350 | G15: =SUM(G6:G14) -> 22.82 | H15: =SUM(H6:H14) -> 26.7 | I15: =SUM(I6:I14) -> 88.9 | J15: =SUM(J6:J14) -> 621 | L15: =SUM(L6:L14) -> 0
A16: =A6 -> 1 | B16: =B6 -> 1 | C16: Завтрак 2 | D16: фрукты
D19: итого | F19: =SUM(F16:F18) -> 0 | G19: =SUM(G16:G18) -> 0 | H19: 0 | I19: 0 | J19: 0 | L19: =SUM(L16:L24) -> 0
A20: =A6 -> 1 | B20: =B6 -> 1 | C20: Обед | D20: закуска
D21: 1 блюдо | E21: Суп картофельный с макаронными изделиями | F21: 250 | G21: 3 | H21: 3 | I21: 17 | J21: 105 | K21: УФА 2021 Сборник тех карт 63
D22: 2 блюдо
D23: гарнир
D24: напиток | E24: Чай с молоком | F24: 150/50/15 | G24: 2 | H24: 1 | I24: 16 | J24: 81 | K24: ДеЛи,2015-544с,№378
D25: хлеб бел. | F25: 30 | G25: 1.0 | H25: 0.2 | I25: 9.0 | J25: 44
D26: хлеб черн. | F26: 20 | G26: 2.0 | H26: 0.2 | I26: 15.0 | J26: 71
L28: 22.3
D29: итого | F29: =SUM(F20:F28) -> 300 | G29: =SUM(G20:G28) -> 7.52 | H29: 4.7 | I29: 56.9 | J29: 301 | L29: =SUM(L26:L34) -> 0
A30: =A6 -> 1 | B30: =B6 -> 1 | C30: Полдник | D30: булочное
D31: напиток
D34: итого | F34: =SUM(F30:F33) -> 0 | G34: =SUM(G30:G33) -> 0 | H34: 0 | I34: 0 | J34: 0 | L34: =SUM(L27:L33) -> 0
A35: =A6 -> 1 | B35: =B6 -> 1 | C35: Ужин | D35: гор.блюдо
D36: гарнир
D37: напиток
D38: хлеб
D41: итого | F41: =SUM(F35:F40) -> 0 | G41: =SUM(G35:G40) -> 0 | H41: 0 | I41: 0 | J41: 0 | L41: =SUM(L35:L43) -> 0
A42: =A6 -> 1 | B42: =B6 -> 1 | C42: Ужин 2 | D42: кисломол.
D43: булочное
D44: напиток
D45: фрукты
D48: итого | F48: =SUM(F42:F47) -> 0 | G48: =SUM(G42:G47) -> 0 | H48: 0 | I48: 0 | J48: 0 | L48: =SUM(L42:L50) -> 0
A49: =A6 -> 1 | B49: =B6 -> 1 | C49: Итого за день: | F49: =F15+F19+F29+F34+F41+F48 -> 650 | G49: =G15+G19+G29+G34+G41+G48 -> 30.34 | H49: 31.4 | I49: 145.8 | J49: 922 | L49: =L15+L19+L29+L34+L41+L48 -> 0
A50: 1 | B50: 2 | C50: Завтрак | D50: гор.блюдо | E50: Рагу из птицы | F50: 50/150 | G50: 12.3 | H50: 17.6 | I50: 29.8 | J50: 313 | K50: ДеЛи,2015№289
E51: Салат из белокачанной капусты | F51: 60 | G51: 0.9 | H51: 3 | I51: 5 | J51: 51.9 | K51: ДеЛи,2015-544с,№45
D52: гор.напиток | E52: Какао с молоком | F52: 200 | G52: 3.7 | H52: 0.6 | I52: 26 | J52: 125 | K52: ДеЛи,2015-544с,№382
D53: хлеб | E53: Хлеб ржан - пшен,1с | F53: 20 | G53: 1.0 | H53: 0.2 | I53: 9.0 | J53: 44
E54: Хлеб белый,1с | F54: 30 | G54: 2.0 | H54: 0.2 | I54: 15.0 | J54: 71
D55: фрукты | L55: 63.61
D58: итого | F58: =SUM(F50:F57) -> 310 | G58: =SUM(G50:G57) -> 19.9 | H58: =SUM(H50:H57) -> 21.6 | I58: =SUM(I50:I57) -> 84.8 | J58: =SUM(J50:J57) -> 604.9 | L58: =SUM(L50:L57) -> 63.61
A59: =A50 -> 1 | B59: =B50 -> 2 | C59: Завтрак 2 | D59: фрукты
D62: итого | F62: =SUM(F59:F61) -> 0 | G62: =SUM(G59:G61) -> 0 | H62: 0 | I62: 0 | J62: 0 | L62: =SUM(L59:L67) -> 0
A63: =A50 -> 1 | B63: =B50 -> 2 | C63: Обед | D63: закуска
D64: 1 блюдо | E64: Борщ с капустой и картофелем | F64: 250/10 | G64: 2 | H64: 5.4 | I64: 12.8 | J64: 111 | K64: 58УФА 2021Сборние тех карт
D65: 2 блюдо
D66: гарнир
D67: напиток | E67: Чай с сахаром | F67: 200/15 | G67: 0.5 | H67: 0 | I67: 9.4 | J67: 40 | K67: ДеЛи,2011-544с,№349
D68: хлеб бел. | F68: 30 | G68: 2.0 | H68: 0.2 | I68: 15.0 | J68: 71.0
D69: хлеб черн. | F69: 20 | G69: 1.0 | H69: 0.2 | I69: 9.0 | J69: 44.0
L71: 22.3
D72: итого | F72: =SUM(F63:F71) -> 50 | G72: =SUM(G63:G71) -> 5.5 | H72: 5.8 | I72: 46.2 | J72: 266 | L72: =SUM(L69:L77) -> 0
A73: =A50 -> 1 | B73: =B50 -> 2 | C73: Полдник | D73: булочное
D74: напиток
D77: итого | F77: =SUM(F73:F76) -> 0 | G77: =SUM(G73:G76) -> 0 | H77: 0 | I77: 0 | J77: 0 | L77: =SUM(L70:L76) -> 0
A78: =A50 -> 1 | B78: =B50 -> 2 | C78: Ужин | D78: гор.блюдо
D79: гарнир
D80: напиток
D81: хлеб
D84: итого | F84: =SUM(F78:F83) -> 0 | G84: =SUM(G78:G83) -> 0 | H84: 0 | I84: 0 | J84: 0 | L84: =SUM(L78:L86) -> 0
A85: =A50 -> 1 | B85: =B50 -> 2 | C85: Ужин 2 | D85: кисломол.
D86: булочное
D87: напиток
D88: фрукты
D91: итого | F91: =SUM(F85:F90) -> 0 | G91: =SUM(G85:G90) -> 0 | H91: 0 | I91: 0 | J91: 0 | L91: =SUM(L85:L93) -> 0
A92: =A50 -> 1 | B92: =B50 -> 2 | C92: Итого за день: | F92: =F58+F62+F72+F77+F84+F91 -> 360 | G92: =G58+G62+G72+G77+G84+G91 -> 25.4 | H92: 27.4 | I92: 131 | J92: 870.9 | L92: =L58+L62+L72+L77+L84+L91 -> 0
A93: 1 | B93: 3 | C93: Завтрак | D93: гор.блюдо | E93: Мясо тушеное | F93: 50/50 | G93: 10.5 | H93: 11 | I93: 3.184 | J93: 196 | K93: ДеЛи,2015-544с,№256.1
E94: Макаронные изделия отварные с маслом | F94: 150/5 | G94: 5.1 | H94: 4.4 | I94: 28.5 | J94: 187 | K94: ДеЛи,2015-544с,№203.1
E95: Салат из свеклы отварной | F95: 60 | G95: 0.855 | H95: 3.653 | I95: 11.5 | J95: 56 | K95: ДеЛи,2015-584с,№52
D96: гор.напиток | E96: Чай с сахаром и лимоном | F96: 200/15/7 | G96: 0.084 | H96: 0.012 | I96: 15.1 | J96: 62 | K96: ДеЛи,2015-544с,№377
D97: хлеб | E97: Хлеб ржан - пшен,1с | F97: 20 | G97: 1.0 | H97: 0.2 | I97: 9.0 | J97: 44
E98: Хлеб белый,1с | F98: 30 | G98: 2.0 | H98: 0.2 | I98: 15.0 | J98: 71
D99: фрукты
L101: 63.61
D102: итого | F102: =SUM(F93:F101) -> 110 | G102: =SUM(G93:G101) -> 19.539 | H102: 19.465 | I102: 82.284 | J102: 616 | L102: =SUM(L93:L101) -> 63.61
A103: =A93 -> 1 | B103: =B93 -> 3 | C103: Завтрак 2 | D103: фрукты
D106: итого | F106: =SUM(F103:F105) -> 0 | G106: =SUM(G103:G105) -> 0 | H106: 0 | I106: 0 | J106: 0 | L106: =SUM(L103:L111) -> 0
A107: =A93 -> 1 | B107: =B93 -> 3 | C107: Обед | D107: закуска
D108: 1 блюдо | E108: Каша ячневая молочная с маслом | F108: 250/10 | G108: 8.7 | H108: 10 | I108: 44.7 | J108: 313 | K108: 194Уфа 2021Сборние тех карт
D109: 2 блюдо
D110: гарнир
D111: напиток | E111: Чай с молоком | F111: 150/50/ | G111: 1.52 | H111: 1.35 | I111: 15.9 | J111: 81 | K111: Дели 2015 376
D112: хлеб бел. | F112: 30 | G112: 2.2 | H112: 0.2 | I112: 15.0 | J112: 71.0
D113: хлеб черн. | F113: 20 | G113: 1.0 | H113: 0.2 | I113: 9.0 | J113: 44.0
L115: 22.3
D116: итого | F116: =SUM(F107:F115) -> 50 | G116: =SUM(G107:G115) -> 13.42 | H116: 11.75 | I116: 84.6 | J116: 509 | L116: =SUM(L113:L121) -> 0
A117: =A93 -> 1 | B117: =B93 -> 3 | C117: Полдник | D117: булочное
D118: напиток
D121: итого | F121: =SUM(F117:F120) -> 0 | G121: =SUM(G117:G120) -> 0 | H121: 0 | I121: 0 | J121: 0 | L121: =SUM(L114:L120) -> 0
A122: =A93 -> 1 | B122: =B93 -> 3 | C122: Ужин | D122: гор.блюдо
D123: гарнир
D124: напиток
D125: хлеб
D128: итого | F128: =SUM(F122:F127) -> 0 | G128: =SUM(G122:G127) -> 0 | H128: 0 | I128: 0 | J128: 0 | L128: =SUM(L122:L130) -> 0
A129: =A93 -> 1 | B129: =B93 -> 3 | C129: Ужин 2 | D129: кисломол.
D130: булочное
D131: напиток
D132: фрукты
D135: итого | F135: =SUM(F129:F134) -> 0 | G135: =SUM(G129:G134) -> 0 | H135: 0 | I135: 0 | J135: 0 | L135: =SUM(L129:L137) -> 0
A136: =A93 -> 1 | B136: =B93 -> 3 | C136: Итого за день: | F136: =F102+F106+F116+F121+F128+F135 -> 160 | G136: =G102+G106+G116+G121+G128+G135 -> 32.959 | H136: 31.215 | I136: 166.884 | J136: 1125 | L136: =L102+L106+L116+L121+L128+L135 -> 0
A137: 1 | B137: 4 | C137: Завтрак | D137: гор.блюдо | E137: Рыба тушенная в томате с овощами | F137: 50/50 | G137: 8.9 | H137: 4.4 | I137: 4.7 | J137: 94 | K137: Уфа 2021 №80
E138: Картофельное пюре | F138: 150 | G138: 3.09 | H138: 6.2 | I138: 22 | J138: 172 | K138: ДеЛи,2015-544с,№312
E139: Салат овощной с яблоками | F139: 60 | G139: 3.5 | H139: 6.1 | I139: 9.9 | J139: 124 | K139: 56 Дели 2-015
D140: гор.напиток | E140: Чай с сахаром | F140: 200/15 | G140: 0.5 | H140: 0 | I140: 9.4 | J140: 40 | K140: ДеЛи,2015-544с,№376
D141: хлеб | E141: Хлеб ржан - пшен,1с | F141: 20 | G141: 1.0 | H141: 0.2 | I141: 9.0 | J141: 44
E142: Хлеб белый,1с | F142: 30 | G142: 2.0 | H142: 0.2 | I142: 15.0 | J142: 71
D143: фрукты
L144: 63.61
D146: итого | F146: =SUM(F137:F145) -> 260 | G146: =SUM(G137:G145) -> 18.99 | H146: 17.1 | I146: 70 | J146: 545 | L146: =SUM(L137:L145) -> 63.61
A147: =A137 -> 1 | B147: =B137 -> 4 | C147: Завтрак 2 | D147: фрукты
D150: итого | F150: =SUM(F147:F149) -> 0 | G150: =SUM(G147:G149) -> 0 | H150: 0 | I150: 0 | J150: 0 | L150: =SUM(L147:L155) -> 0
A151: =A137 -> 1 | B151: =B137 -> 4 | C151: Обед | D151: закуска
D152: 1 блюдо | E152: Каша рисовая молочная вязкая | F152: 250/10 | G152: 7.2 | H152: 9.9 | I152: 48.9 | J152: 319 | K152: Уфа 2021 191
D153: 2 блюдо
D154: гарнир
D155: напиток | E155: Чай с сахаром | F155: 200/15 | G155: 0.53 | H155: 0 | I155: 9.4 | J155: 40 | K155: №376,2015 Дели гМосквва
D156: хлеб бел. | F156: 30 | G156: 71.00 | H156: 2.2 | I156: 0.2 | J156: 15.0
D157: хлеб черн. | F157: 20 | G157: 44.00 | H157: 1.0 | I157: 0.2 | J157: 9.0
L159: 22.3
D160: итого | F160: =SUM(F151:F159) -> 50 | G160: =SUM(G151:G159) -> 122.73 | H160: 13.1 | I160: 58.7 | J160: 383 | L160: =SUM(L157:L165) -> 0
A161: =A137 -> 1 | B161: =B137 -> 4 | C161: Полдник | D161: булочное
D162: напиток
D165: итого | F165: =SUM(F161:F164) -> 0 | G165: =SUM(G161:G164) -> 0 | H165: 0 | I165: 0 | J165: 0 | L165: =SUM(L158:L164) -> 0
A166: =A137 -> 1 | B166: =B137 -> 4 | C166: Ужин | D166: гор.блюдо
D167: гарнир
D168: напиток
D169: хлеб
D172: итого | F172: =SUM(F166:F171) -> 0 | G172: =SUM(G166:G171) -> 0 | H172: 0 | I172: 0 | J172: 0 | L172: =SUM(L166:L174) -> 0
A173: =A137 -> 1 | B173: =B137 -> 4 | C173: Ужин 2 | D173: кисломол.
D174: булочное
D175: напиток
D176: фрукты
D179: итого | F179: =SUM(F173:F178) -> 0 | G179: =SUM(G173:G178) -> 0 | H179: 0 | I179: 0 | J179: 0 | L179: =SUM(L173:L181) -> 0
A180: =A137 -> 1 | B180: =B137 -> 4 | C180: Итого за день: | F180: =F146+F150+F160+F165+F172+F179 -> 310 | G180: =G146+G150+G160+G165+G172+G179 -> 141.72 | H180: 30.2 | I180: 128.7 | J180: 928 | L180: =L146+L150+L160+L165+L172+L179 -> 0
A181: 1 | B181: 5 | C181: Завтрак | D181: гор.блюдо | E181: Котлеты гов | F181: 80 | G181: 9.6 | H181: 12.4 | I181: 11 | J181: 182 | K181: дели 2015№268
E182: Рис отварной | F182: 150 | G182: 3.8 | H182: 5.4 | I182: 34 | J182: 210 | K182: Дели 2015 сбор 304
E183: Салат из моркови с яблоками | F183: 60 | G183: 0.6 | H183: 0.1 | I183: 16 | J183: 14 | K183: ДеЛи,2015-544с,№59
D184: гор.напиток | E184: Чай с молоком | F184: 150/50/15 | G184: 1.5 | H184: 1.3 | I184: 4 | J184: 81 | K184: Дели 2015 378
D185: хлеб | E185: Хлеб ржан-пшен,1с | F185: 20 | G185: 1.0 | H185: 0.2 | I185: 9.0 | J185: 44
E186: Хлеб белый,1с | F186: 30 | G186: 2.0 | H186: 0.2 | I186: 15.0 | J186: 71
D187: фрукты
L189: 63.61
D190: итого | F190: =SUM(F181:F189) -> 340 | G190: =SUM(G181:G189) -> 18.5 | H190: =SUM(H181:H189) -> 19.6 | I190: =SUM(I181:I189) -> 88.9 | J190: =SUM(J181:J189) -> 602 | L190: =SUM(L181:L189) -> 63.61
A191: =A181 -> 1 | B191: =B181 -> 5 | C191: Завтрак 2 | D191: фрукты
D194: итого | F194: =SUM(F191:F193) -> 0 | G194: =SUM(G191:G193) -> 0 | H194: 0 | I194: 0 | J194: 0 | L194: =SUM(L191:L199) -> 0
A195: =A181 -> 1 | B195: =B181 -> 5 | C195: Обед | D195: закуска
D196: 1 блюдо | E196: Суп картофельный с бобовыми и гренками | F196: 300/25 | G196: 9 | H196: 5.4 | I196: 38.9 | J196: 253 | K196: Уфа 2021 65
D197: 2 блюдо
D198: гарнир
D199: напиток | E199: Чай с молоком | F199: 150/50 | G199: 1.5 | H199: 1.3 | I199: 15.9 | J199: 81 | K199: ДеЛи,2015-544с,№378
D200: хлеб бел. | F200: 30 | G200: 2.2 | H200: 0.2 | I200: 15.0 | J200: 71
D201: хлеб черн. | F201: 20 | G201: 1.0 | H201: 0.2 | I201: 9.0 | J201: 44
L203: 22.3
D204: итого | F204: =SUM(F195:F203) -> 50 | G204: =SUM(G195:G203) -> 13.7 | H204: 7.1 | I204: 78.8 | J204: 449 | L204: =SUM(L201:L209) -> 0
A205: =A181 -> 1 | B205: =B181 -> 5 | C205: Полдник | D205: булочное
D206: напиток
D209: итого | F209: =SUM(F205:F208) -> 0 | G209: =SUM(G205:G208) -> 0 | H209: 0 | I209: 0 | J209: 0 | L209: =SUM(L202:L208) -> 0
A210: =A181 -> 1 | B210: =B181 -> 5 | C210: Ужин | D210: гор.блюдо
D211: гарнир
D212: напиток
D213: хлеб
D216: итого | F216: =SUM(F210:F215) -> 0 | G216: =SUM(G210:G215) -> 0 | H216: 0 | I216: 0 | J216: 0 | L216: =SUM(L210:L218) -> 0
A217: =A181 -> 1 | B217: =B181 -> 5 | C217: Ужин 2 | D217: кисломол.
D218: булочное
D219: напиток
D220: фрукты
D223: итого | F223: =SUM(F217:F222) -> 0 | G223: =SUM(G217:G222) -> 0 | H223: 0 | I223: 0 | J223: 0 | L223: =SUM(L217:L225) -> 0
A224: =A181 -> 1 | B224: =B181 -> 5 | C224: Итого за день: | F224: =F190+F194+F204+F209+F216+F223 -> 390 | G224: =G190+G194+G204+G209+G216+G223 -> 32.2 | H224: 26.7 | I224: 167.7 | J224: 1051 | L224: =L190+L194+L204+L209+L216+L223 -> 0
A225: 1 | B225: 6 | C225: Завтрак | D225: гор.блюдо | E225: Куры отварные | F225: 90 | G225: 22.5 | H225: 18.9 | I225: 0.3 | J225: 295 | K225: Уфа2021 №132
E226: Каша перловая рассыпчатая | F226: 180/5 | G226: 5.5 | H226: 4.7 | I226: 38 | J226: 229 | K226: Уфа 2021 № 184
E227: Салат Витаминный | F227: 60 | G227: 0.9 | H227: 2.7 | I227: 6.5 | J227: 56 | K227: Дели 2015-544с, №75
D228: гор.напиток | E228: Кофейный напиток с молоком | F228: 200 | G228: 3.6 | H228: 2.6 | I228: 29.2 | J228: 156 | K228: Дели 2015 №379
D229: хлеб | E229: Хлеб ржан - пшен,1с | F229: 20 | G229: 1.0 | H229: 0.2 | I229: 9.0 | J229: 44
E230: Хлеб белый,1с | F230: 30 | G230: 2.0 | H230: 0.2 | I230: 15.0 | J230: 71
D231: фрукты | E231: Плоды и ягоды свежие (яблоки) | F231: 100 | G231: 0 | H231: 0.4 | I231: 7.3 | J231: 47 | K231: Дели 2015№ 338
D234: итого | F234: =SUM(F225:F233) -> 500 | G234: =SUM(G225:G233) -> 35.5 | H234: 29.7 | I234: 105.3 | J234: 898 | L234: =SUM(L225:L233) -> 0
A235: =A225 -> 1 | B235: =B225 -> 6 | C235: Завтрак 2 | D235: фрукты
D238: итого | F238: =SUM(F235:F237) -> 0 | G238: =SUM(G235:G237) -> 0 | H238: 0 | I238: 0 | J238: 0 | L238: =SUM(L235:L243) -> 0
A239: =A225 -> 1 | B239: =B225 -> 6 | C239: Обед | D239: закуска
D240: 1 блюдо
D241: 2 блюдо
D242: гарнир
D243: напиток
D244: хлеб бел.
D245: хлеб черн.
D248: итого | F248: =SUM(F239:F247) -> 0 | G248: =SUM(G239:G247) -> 0 | H248: 0 | I248: 0 | J248: 0 | L248: =SUM(L245:L253) -> 0
A249: =A225 -> 1 | B249: =B225 -> 6 | C249: Полдник | D249: булочное
D250: напиток
D253: итого | F253: =SUM(F249:F252) -> 0 | G253: =SUM(G249:G252) -> 0 | H253: 0 | I253: 0 | J253: 0 | L253: =SUM(L246:L252) -> 0
A254: =A225 -> 1 | B254: =B225 -> 6 | C254: Ужин | D254: гор.блюдо
D255: гарнир
D256: напиток
D257: хлеб
D260: итого | F260: =SUM(F254:F259) -> 0 | G260: =SUM(G254:G259) -> 0 | H260: 0 | I260: 0 | J260: 0 | L260: =SUM(L254:L262) -> 0
A261: =A225 -> 1 | B261: =B225 -> 6 | C261: Ужин 2 | D261: кисломол.
D262: булочное
... 264 more rows
